bitfinex-derivatives/quotes_ETHF0:USTF0_20241105
["timestamp","ask_amount","ask_price","bid_price","bid_amount"]
[1730850231182,6.2666,2433.0,2432.9,0.68348581]
[1730850231974,6.67763,2433.0,2432.9,0.27243581]
[1730850232174,6.2666,2433.0,2432.8,0.9262]
[1730850232375,6.7294,2432.9,2432.8,1.33726]
[1730850232574,6.7294,2432.9,2432.6,0.84989]
[1730850232881,6.2666,2432.7,2432.6,0.84989]
[1730850233084,6.2666,2432.7,2432.6,1.1222925]
[1730850233380,6.2666,2432.7,2432.6,0.84989]
[1730850234675,6.2666,2432.7,2432.6,0.41109]
[1730850234878,6.2666,2432.7,2432.5,0.461]
[1730850234879,6.67769,2432.7,2432.5,0.461]
[1730850235078,6.2666,2432.6,2432.5,2.0561003]
[1730850235978,6.2666,2432.6,2432.5,1.6450003]
[1730850236782,6.2666,2432.6,2432.5,0.461]
[1730850238678,6.7399,2432.6,2432.5,0.461]
[1730850239180,6.7399,2432.6,2432.4,3.2078]
[1730850239382,7.8617203,2432.5,2432.4,3.2078]
[1730850239588,8.3347203,2432.5,2432.4,3.2078]
[1730850240187,7.15072,2432.5,2432.4,3.2078]
[1730850240382,7.9236003,2432.5,2432.1,1.06788103]
[1730850240679,6.2666,2432.2,2432.0,1.60182154]
[1730850240888,6.7144,2432.1,2432.0,3.619]
[1730850241185,6.7144,2432.1,2432.0,0.4112]
[1730850241375,6.2666,2432.1,2432.0,0.4112]
[1730850241889,6.2666,2432.1,2432.0,1.5952003]
[1730850242778,6.2666,2432.1,2432.0,0.4112]
[1730850242977,6.2666,2432.1,2431.9,1.98658103]
[1730850243176,6.7144,2432.0,2431.9,1.98658103]
[1730850243589,6.7144,2432.0,2431.9,2.39780103]
[1730850244877,6.7144,2432.0,2431.9,1.32992]
[1730850246588,6.2666,2432.0,2431.9,1.32992]
[1730850246797,6.2666,2432.0,2431.9,2.5139203]
[1730850247088,0.41113,2432.5,2431.9,2.1027003]
[1730850247292,1.1840003,2432.4,2432.0,0.4112]
[1730850247486,1.1840003,2432.4,2431.9,2.1027003]
[1730850247487,6.67779,2432.1,2431.9,0.9187]
[1730850247689,7.1109,2432.0,2431.9,0.9187]
[1730850249288,7.1109,2432.0,2431.8,0.41123]
[1730850249593,6.2666,2431.9,2431.8,0.41123]
[1730850249991,6.2666,2431.9,2431.7,1.31344]
[1730850250299,6.2666,2431.8,2431.7,1.31345]
[1730850251792,6.2666,2431.8,2431.7,0.9022]
[1730850252094,9.24503591,2431.8,2431.7,0.4517]
[1730850252300,6.67783,2431.8,2431.7,0.4517]
[1730850253098,6.2666,2431.8,2431.7,0.4517]
[1730850253298,6.67783,2431.8,2431.7,0.4517]
[1730850253997,6.2666,2431.8,2431.7,0.4517]
[1730850254198,6.2666,2431.8,2431.7,0.86295]
[1730850259006,6.2666,2431.8,2431.6,0.8919]
[1730850259309,6.6959,2431.7,2431.6,0.4562]
[1730850259501,7.10715,2431.7,2431.6,0.4562]
[1730850259804,2.79522611,2431.1,2430.8,0.41139]
[1730850260007,2.79522611,2430.9,2430.8,1.7936]
[1730850260206,2.79522611,2430.9,2430.6,0.16336068]
[1730850260509,2.79522611,2430.7,2430.4,1.3822]
[1730850260801,3.2078,2431.1,2430.5,0.41145]
[1730850260802,2.79522611,2430.6,2430.5,0.41145]
[1730850261007,2.79522611,2430.6,2430.4,1.3822]
[1730850261201,2.79522611,2430.5,2430.4,1.3822]
[1730850261402,2.1778413,2430.5,2430.4,1.3822]
[1730850262909,2.1778413,2430.5,2430.4,1.79367]
[1730850263313,2.56720591,2431.3,2430.4,1.79367]
[1730850263314,3.2078,2431.1,2430.4,8.7044]
[1730850263522,2.1778413,2430.9,2430.8,0.4114]
[1730850264414,3.2078,2431.4,2430.8,0.4114]
[1730850264415,3.2078,2431.4,2431.2,0.41133]
[1730850264605,3.2078,2431.4,2431.1,0.41134]
[1730850264606,2.1778413,2431.3,2431.1,0.41134]
[1730850264811,2.1778413,2431.0,2430.9,0.8873]
[1730850265305,2.1778413,2431.0,2430.9,1.29869]
[1730850274542,0.41141,2430.8,2430.3,0.50748]
[1730850274719,2.1778413,2430.4,2430.3,0.41148]
[1730850275432,2.1778413,2430.4,2430.2,0.9111]
[1730850275624,2.1778413,2430.4,2430.3,0.41149]
[1730850275819,2.1778413,2430.4,2430.2,1.3226]
[1730850276628,2.1778413,2430.4,2430.2,0.9111]
[1730850276829,2.1778413,2430.4,2430.2,1.3226]
[1730850277023,2.1778413,2430.4,2430.2,0.9111]
[1730850277219,3.2078,2430.6,2429.9,2.56720591]
[1730850277416,2.1778413,2430.2,2429.9,0.87265]
[1730850277628,2.1778413,2430.0,2429.9,0.4611]
[1730850277817,2.1778413,2430.0,2429.9,0.87266]
[1730850278622,3.2078,2430.3,2429.9,0.4611]
[1730850278829,2.1778413,2430.2,2430.1,0.41151]
[1730850279021,2.1778413,2430.2,2430.0,3.2078]
[1730850279223,2.1778413,2430.2,2430.0,3.61932]
[1730850279424,2.1778413,2430.2,2430.0,0.41152]
[1730850280224,2.1778413,2430.1,2429.9,0.87265]
[1730850280637,2.1778413,2430.1,2430.0,0.41154]
[1730850281520,2.1778413,2430.1,2429.6,4.2786955]
[1730850281831,0.4419,2430.5,2429.7,0.8659]
[1730850281832,3.2078,2430.0,2429.7,0.8659]
[1730850282130,3.2078,2430.0,2429.7,0.4329]
[1730850282328,2.1778413,2429.8,2429.7,0.4329]
[1730850283231,0.41162,2429.6,2429.1,0.41168]
[1730850283435,3.2078,2429.4,2428.9,4.19290141]
[1730850283726,3.2078,2429.8,2428.9,4.09690141]
[1730850283932,3.61938,2429.8,2428.9,3.02600591]
[1730850284136,3.2078,2429.8,2429.4,0.41163]
[1730850284529,3.61937,2429.8,2429.3,0.41165]
[1730850284731,3.61937,2429.8,2429.4,0.41163]
[1730850284732,3.2078,2429.8,2429.4,0.41163]
[1730850284930,3.2078,2429.8,2429.0,0.096]
[1730850285132,3.2078,2429.8,2428.9,3.02600591]
[1730850285434,3.2078,2429.5,2429.3,0.41165]
[1730850285935,3.2078,2429.5,2429.4,0.4588]
[1730850286136,3.2078,2429.5,2429.4,0.87044]
[1730850286332,3.2078,2429.8,2429.4,0.4588]
[1730850286525,3.2078,2429.8,2429.5,0.41161]
[1730850286726,3.2078,2429.8,2429.4,0.4588]
[1730850286933,3.2078,2429.8,2429.5,0.41162]
[1730850287126,3.2078,2429.8,2429.4,0.4588]
[1730850287127,3.2078,2429.8,2429.6,0.4116]
[1730850287527,3.2078,2429.8,2429.7,0.41159]
[1730850288033,0.4623,2429.9,2429.7,0.41158]
[1730850288334,0.4623,2429.9,2429.8,0.41157]
[1730850288536,6.21510591,2430.4,2430.0,0.41153]
[1730850288735,0.4492,2430.3,2429.6,0.096]
[1730850288934,3.2078,2430.1,2430.0,0.41154]
[1730850289145,0.4492,2430.3,2429.7,2.56720591]
[1730850289437,0.4492,2430.3,2430.2,0.4115]
[1730850292036,0.4492,2430.3,2429.8,3.2078]
[1730850292229,0.4579,2430.2,2429.9,0.41154]
[1730850292429,0.4579,2430.2,2429.8,3.2078]
[1730850292633,0.4579,2430.2,2430.1,0.41152]
[1730850292940,0.4579,2430.2,2430.0,0.41152]
[1730850293732,0.4492,2430.3,2429.9,0.4584]
[1730850293938,0.4492,2430.3,2430.1,0.41151]
[1730850294239,0.4492,2430.3,2430.2,0.4115]
[1730850296643,0.4492,2430.3,2430.0,0.4449]
[1730850296644,0.4492,2430.3,2430.1,0.41151]
[1730850296940,0.41151,2430.2,2429.9,0.86995]
[1730850297132,0.41151,2430.2,2429.6,0.4561]
[1730850297133,5.77500591,2430.1,2429.6,0.4561]
[1730850297336,3.2078,2429.8,2429.6,0.4116]
[1730850297531,0.4714,2429.7,2429.6,0.4116]
[1730850300137,3.2078,2429.8,2429.7,0.41159]
[1730850300544,0.4427,2430.0,2429.8,0.41156]
[1730850301342,0.4427,2430.0,2429.4,3.02330591]
[1730850301540,0.85424,2430.0,2429.7,0.41158]
[1730850301746,0.4427,2430.0,2429.4,0.4561]
[1730850301947,0.4427,2430.0,2429.7,0.41158]
[1730850302144,0.85425,2430.0,2429.7,0.41158]
[1730850303446,0.85425,2430.0,2429.8,0.41157]
[1730850304746,0.85425,2430.0,2429.7,0.41158]
[1730850304949,0.4427,2430.0,2429.8,0.41157]
[1730850305551,0.85425,2430.0,2429.7,0.41157]
[1730850305748,0.85425,2430.0,2429.8,0.41157]
[1730850306056,0.4427,2430.0,2429.4,0.4561]
[1730850306353,0.4427,2430.0,2429.4,0.41163]
[1730850306354,3.2078,2429.8,2429.4,0.41163]
[1730850306561,3.2078,2429.5,2429.3,1.31284]
[1730850306949,3.6617,2429.5,2429.3,1.31285]
[1730850307153,0.41165,2429.4,2429.1,0.41169]
[1730850307453,6.18668591,2429.2,2429.0,0.456]
[1730850307654,3.2078,2429.2,2429.0,0.8677]
[1730850307847,3.2078,2429.2,2429.0,0.456]
[1730850308049,3.2078,2429.2,2429.1,0.41169]
[1730850308648,3.2078,2429.2,2429.0,0.456]
[1730850308847,3.2078,2429.2,2429.0,0.8677]
[1730850309348,3.2078,2429.2,2429.0,0.456]
[1730850309760,3.2078,2429.2,2428.6,0.096]
[1730850309951,3.2078,2428.9,2428.6,0.4497]
[1730850310163,3.2078,2428.9,2428.7,0.41175]
[1730850310552,3.2078,2428.9,2428.8,0.41174]
[1730850311161,3.2078,2429.2,2428.6,0.4497]
[1730850311349,0.4528,2429.3,2428.8,2.56720591]
[1730850311550,0.4528,2429.3,2429.1,0.41168]
[1730850311755,3.2078,2429.5,2429.3,0.41164]
[1730850312052,3.2078,2429.5,2429.3,0.41165]
[1730850312251,3.2078,2429.5,2429.0,3.2078]
[1730850312451,3.2078,2429.5,2429.3,0.41165]
[1730850312858,3.2078,2429.5,2429.4,0.41164]
[1730850313953,3.2078,2429.5,2429.3,0.41165]
[1730850314155,3.2078,2429.5,2429.4,0.41164]
[1730850315257,2.56720591,2429.4,2428.8,0.096]
[1730850315461,3.2078,2429.2,2429.0,0.4117]
[1730850316560,3.2078,2429.2,2429.1,0.41169]
[1730850316753,3.2078,2429.2,2428.8,0.8857]
[1730850316952,3.2078,2429.2,2428.9,0.41172]
[1730850317157,3.61948,2429.2,2428.9,0.41172]
[1730850317366,4.08398,2429.2,2428.9,0.41172]
[1730850317668,3.2078,2429.2,2428.9,0.41172]
[1730850318054,3.61948,2429.2,2428.9,0.41172]
[1730850318263,0.8762,2429.1,2428.8,0.8857]
[1730850318666,0.8762,2429.1,2428.8,1.29744]
[1730850319658,0.4645,2429.1,2428.8,0.4433]
[1730850320058,0.41172,2429.0,2428.6,3.61957]
[1730850320266,5.77500591,2428.7,2428.4,0.455]
[1730850320563,5.77500591,2428.7,2428.2,0.84373]
[1730850320564,0.86628,2428.6,2428.2,0.84373]
[1730850320762,0.86628,2428.6,2428.1,1.27662048]
[1730850320763,3.2078,2428.4,2428.1,1.27662048]
[1730850321065,3.2078,2428.4,2428.1,0.86477048]
[1730850321066,2.56720591,2428.2,2428.1,0.86477048]
[1730850321276,2.97904591,2428.2,2428.1,0.86477048]
[1730850321559,7.09744591,2428.2,2428.1,0.86477048]
[1730850322157,7.93160591,2428.2,2427.5,0.096]
[1730850322359,3.2078,2428.0,2427.7,0.41192]
[1730850322961,3.2078,2428.0,2427.4,3.2078]
[1730850323366,2.56720591,2427.9,2427.6,0.41194]
[1730850323665,0.41197,2427.5,2427.2,0.207]
[1730850323866,5.3652,2427.9,2427.2,0.412]
[1730850323867,3.2078,2427.4,2427.2,0.412]
[1730850324168,0.41201,2427.3,2426.9,0.85466]
[1730850324471,5.77500591,2427.1,2426.7,0.50809]
[1730850324766,5.77500591,2427.1,2426.8,0.41208]
[1730850324960,6.23800591,2427.1,2426.8,0.41208]
[1730850325172,4.53205,2427.0,2426.6,0.4121]
[1730850325464,3.2078,2426.8,2426.4,0.4426]
[1730850325766,3.2078,2426.8,2426.6,0.4121]
[1730850325767,2.58943043,2426.8,2426.6,0.4121]
[1730850326075,2.58943043,2426.8,2426.5,0.41212]
[1730850326367,2.58943043,2426.8,2426.5,0.41213]
[1730850326567,2.58943043,2426.8,2426.4,0.85474]
[1730850327067,2.58943043,2426.8,2426.0,0.096]
[1730850327265,2.58943043,2426.8,2425.9,3.3188]
[1730850327266,3.00152043,2426.8,2426.3,0.41216]
[1730850327466,2.58943043,2426.8,2426.6,0.41211]
[1730850327769,2.58943043,2426.8,2426.0,3.16665609]
[1730850327770,2.58943043,2426.8,2426.7,0.4121]
[1730850328070,3.2078,2427.1,2427.0,0.41205]
[1730850328859,3.2078,2427.5,2427.4,0.41198]
[1730850330558,6.37445609,2428.1,2427.2,3.2078]
[1730850330769,6.37445609,2428.1,2427.6,0.41193]
[1730850330966,6.37445609,2428.1,2427.3,0.8863]
[1730850330967,6.37445609,2428.1,2427.4,0.41198]
[1730850331268,3.2078,2428.1,2427.3,0.8863]
[1730850331571,3.2078,2428.1,2427.8,0.4119]
[1730850331780,0.41196,2427.5,2427.2,0.096]
[1730850331974,3.16665609,2427.8,2426.7,0.096]
[1730850331975,3.2078,2427.3,2426.7,0.096]
[1730850332272,3.2078,2427.7,2426.9,3.2078]
[1730850332674,3.2078,2427.7,2427.2,3.2078]
[1730850332878,3.2078,2427.7,2427.4,0.41197]
[1730850333281,3.2078,2427.7,2427.2,3.2078]
[1730850333478,0.4583,2428.0,2427.2,3.2078]
[1730850333675,0.4583,2428.0,2427.6,0.41194]
[1730850334385,0.4583,2428.0,2427.3,0.4488]
[1730850334576,0.4583,2428.0,2427.7,0.41193]
[1730850335178,0.4583,2428.0,2427.3,0.4488]
[1730850335893,0.4583,2428.0,2427.7,0.41191]
[1730850336080,0.4583,2428.0,2427.3,0.4488]
[1730850336286,0.4583,2428.0,2427.8,0.4119]
[1730850336587,3.2078,2428.1,2427.9,0.41188]
[1730850336783,3.2078,2428.1,2427.5,3.2078]
[1730850336784,3.2078,2428.1,2427.8,0.4119]
[1730850336980,3.2078,2428.1,2428.0,0.41188]
[1730850337183,3.2078,2428.1,2427.6,0.4508]
[1730850337382,3.2078,2428.1,2428.0,0.41188]
[1730850338188,3.2078,2428.1,2427.6,0.4508]
[1730850338501,3.2078,2428.1,2428.0,0.41188]
[1730850338792,7.73806,2428.1,2427.7,0.41192]
[1730850339092,7.73806,2428.1,2427.4,0.41198]
[1730850339093,3.61972,2427.8,2427.4,0.41198]
[1730850339295,3.2078,2427.8,2427.3,0.4488]
[1730850339593,3.2078,2427.8,2427.6,0.41193]
[1730850339787,3.2078,2427.8,2427.3,0.4488]
[1730850339983,3.2078,2427.8,2427.6,0.41194]
[1730850340283,3.2078,2428.1,2427.3,1.4788]
[1730850340590,3.61967,2428.1,2427.7,0.41192]
[1730850340790,3.2078,2428.1,2427.3,0.4488]
[1730850341092,3.2078,2428.1,2427.4,3.2078]
[1730850341286,3.2078,2428.1,2427.8,0.4119]
[1730850341684,3.61966,2428.1,2427.7,0.41191]
[1730850341994,3.2078,2428.1,2427.5,3.2078]
[1730850342188,3.2078,2428.1,2427.8,0.41191]
[1730850342588,3.61967,2428.1,2427.7,0.41192]
[1730850342789,3.2078,2428.1,2427.8,0.4119]
[1730850342996,3.61967,2428.1,2427.7,0.41191]
[1730850343390,3.2078,2428.1,2427.8,0.4119]
[1730850344088,3.2078,2428.1,2427.5,3.2078]
[1730850344089,4.1184,2428.0,2427.3,0.4488]
[1730850344399,6.37445609,2428.1,2427.5,0.41196]
[1730850344400,3.2078,2427.8,2427.5,0.41196]
[1730850344988,3.61971,2427.8,2427.4,0.41197]
[1730850345392,3.2078,2427.8,2427.3,0.86079]
[1730850345791,3.2078,2427.8,2427.3,0.4488]
[1730850346197,3.61972,2427.8,2427.3,0.4488]
[1730850347087,0.41193,2427.7,2427.3,0.4488]
[1730850347393,3.2078,2427.8,2427.3,0.86079]
[1730850347595,3.2078,2427.8,2427.3,0.4488]
[1730850347892,0.41193,2427.7,2427.3,0.4488]
[1730850348191,0.41197,2427.5,2427.2,0.1925]
[1730850348384,0.41201,2427.2,2427.1,3.2078]
[1730850348591,0.41206,2427.0,2426.7,0.4635]
[1730850348792,0.41206,2427.0,2426.3,3.2078]
[1730850349094,3.16665609,2427.2,2426.3,3.6713]
[1730850349289,2.57269408,2427.0,2426.3,3.6713]
[1730850349493,2.98474408,2427.0,2426.5,0.41213]
[1730850349887,2.98471408,2427.2,2426.7,0.41209]
[1730850350093,2.57269408,2427.2,2426.8,0.41208]
[1730850350293,2.98471408,2427.2,2426.7,0.41209]
[1730850351092,2.57269408,2427.2,2426.6,3.2078]
[1730850351396,0.41203,2427.2,2426.7,1.32189]
[1730850351698,0.41203,2427.1,2426.7,1.32189]
[1730850351901,0.41202,2427.2,2426.8,0.41207]
[1730850352192,3.6198,2427.3,2426.9,0.41206]
[1730850352592,3.6198,2427.3,2426.9,0.41205]
[1730850352792,3.2078,2427.3,2426.8,0.41207]
[1730850352993,0.41202,2427.2,2426.8,0.41207]
[1730850353500,0.41204,2427.1,2426.7,1.32189]
[1730850353795,0.41202,2427.2,2426.8,0.41207]
[1730850354694,0.41202,2427.2,2426.7,0.9098]
[1730850354901,0.41202,2427.2,2426.8,0.41208]
[1730850355099,3.2078,2427.3,2427.0,0.41204]
[1730850355303,3.61981,2427.3,2426.7,0.9098]
[1730850355497,3.61981,2427.3,2426.9,0.41206]
[1730850355697,3.61981,2427.3,2426.8,0.41207]
[1730850356002,3.2078,2427.3,2427.2,0.41201]
[1730850356197,0.4338,2427.4,2426.9,0.41206]
[1730850356391,0.4338,2427.4,2427.1,0.41202]
[1730850356797,0.4338,2427.4,2427.0,0.4324]
[1730850357005,0.84578,2427.4,2427.0,0.4324]
[1730850357501,0.4338,2427.4,2427.0,0.4324]
[1730850357702,6.37377487,2427.7,2427.0,0.4324]
[1730850357703,0.41195,2427.6,2427.0,0.4324]
[1730850357899,3.2078,2427.7,2427.0,0.4324]
[1730850358203,0.41199,2427.4,2427.0,0.4324]
[1730850358503,0.41201,2427.3,2427.0,0.4324]
[1730850358694,0.41202,2427.2,2427.0,0.4324]
[1730850358900,0.41202,2427.2,2426.8,3.61988]
[1730850359495,0.8841,2427.3,2426.8,3.2078]
[1730850359809,0.41202,2427.2,2426.8,3.61987]
[1730850360000,0.8841,2427.3,2426.8,3.61987]
[1730850360001,1.29611,2427.3,2426.8,3.61987]
[1730850360305,0.41202,2427.2,2426.8,3.61987]
[1730850360513,0.41206,2426.9,2426.8,3.2078]
[1730850361010,4.53286,2426.9,2426.8,3.2078]
[1730850361704,0.41211,2426.7,2426.4,0.4302]
[1730850361910,3.673,2426.8,2426.4,0.4302]
[1730850362099,4.08509,2426.8,2426.4,0.4302]
[1730850362505,0.4121,2426.7,2426.4,0.4302]
[1730850362709,0.4121,2426.7,2426.4,0.84235]
[1730850362910,4.08509,2426.8,2426.4,0.84235]
[1730850363310,3.673,2426.8,2426.4,0.4302]
[1730850363508,0.41213,2426.5,2426.2,5.6098755]
[1730850363703,0.4389,2426.7,2426.2,4.1268]
[1730850364106,0.85101,2426.7,2426.3,0.41216]
[1730850364313,0.41211,2426.6,2426.3,0.41216]
[1730850365307,0.41213,2426.6,2426.2,5.6098755]
[1730850365498,0.41213,2426.6,2426.3,0.27319861]
[1730850365703,0.41213,2426.6,2426.2,5.6098755]
[1730850365903,0.41213,2426.6,2426.3,0.68536011]
[1730850366113,0.41213,2426.6,2426.3,0.41216]
[1730850366317,0.41213,2426.6,2426.4,0.27334753]
[1730850366503,0.41213,2426.6,2426.3,0.41216]
[1730850367504,0.4121,2426.7,2426.4,0.27329731]
[1730850367708,3.673,2426.8,2426.3,1.0708955]
[1730850367909,0.4121,2426.7,2426.4,0.27324694]
[1730850368204,0.4121,2426.7,2426.3,0.41216]
[1730850368404,0.4121,2426.7,2426.4,0.68545322]
[1730850368607,0.4121,2426.7,2426.4,0.41215]
[1730850369509,3.673,2426.8,2426.2,5.1976955]
[1730850369709,3.673,2426.8,2426.6,0.41211]
[1730850370118,3.673,2426.8,2426.3,1.0708955]
[1730850370414,0.4121,2426.7,2426.4,0.2732137]
[1730850370618,0.4121,2426.7,2426.2,5.1976955]
[1730850370809,0.4121,2426.7,2426.4,0.41215]
[1730850371315,4.08509,2426.8,2426.5,0.41213]
[1730850371515,3.673,2426.8,2426.2,5.1976955]
[1730850371815,0.41212,2426.6,2426.2,5.1976955]
[1730850372015,3.16597487,2426.3,2426.1,1.0708955]
[1730850372312,4.08978,2426.2,2425.7,0.564]
[1730850372512,4.08978,2426.2,2425.8,0.41224]
[1730850373218,3.6776,2426.2,2425.5,1.1668955]
[1730850373415,3.6776,2426.2,2425.4,4.92125234]
[1730850373416,0.41221,2426.1,2425.6,0.41228]
[1730850373718,4.08979,2426.2,2425.7,0.41225]
[1730850374013,0.4122,2426.1,2425.4,4.2786955]
[1730850374220,3.6776,2426.2,2425.4,4.2786955]
[1730850374404,0.4698,2426.2,2425.9,0.41223]
[1730850374609,0.4698,2426.2,2426.0,0.4551]
[1730850375211,0.4698,2426.2,2426.0,0.86732]
[1730850375513,0.4698,2426.2,2426.1,0.4122]
[1730850375717,1.02996,2427.4,2426.3,0.41215]
[1730850375718,3.61989,2426.8,2426.3,0.41215]
[1730850376010,3.61989,2426.8,2426.0,3.7589]
[1730850376011,3.2078,2426.8,2426.0,3.7589]
[1730850376220,0.41213,2426.6,2426.2,0.41218]
[1730850376616,0.4498,2426.5,2426.2,0.41218]
[1730850377519,0.4498,2426.5,2426.0,0.4551]
[1730850377520,3.2078,2426.8,2426.4,0.41215]
[1730850377723,3.57809487,2426.6,2426.2,0.41218]
[1730850378022,3.2078,2426.5,2426.2,0.41218]
[1730850378608,3.2078,2426.5,2426.0,0.4551]
[1730850378808,0.442,2426.7,2426.0,4.69341]
[1730850379114,0.442,2426.7,2426.5,0.41212]
[1730850379620,0.442,2426.7,2426.6,0.41211]
[1730850380413,6.37377487,2426.9,2426.4,0.9238]
[1730850380612,3.2078,2426.9,2426.7,0.41209]
[1730850380817,3.2078,2426.9,2426.8,0.41208]
[1730850382322,3.2078,2426.9,2426.7,0.41209]
[1730850382626,3.2078,2426.9,2426.8,0.41208]
[1730850384220,3.2078,2426.9,2426.5,0.4608]
[1730850384421,3.2078,2426.9,2426.8,0.41208]
[1730850385319,3.2078,2426.9,2426.5,0.4608]
[1730850385518,3.2078,2426.9,2426.8,0.41208]
[1730850386426,3.2078,2426.9,2426.7,0.41209]
[1730850387021,2.57228255,2426.7,2426.5,0.4608]
[1730850387324,0.41212,2426.6,2426.3,3.61996]
[1730850387529,0.8792,2426.6,2426.4,0.41215]
[1730850387928,1.29133,2426.6,2426.3,3.61996]
[1730850388529,0.8792,2426.6,2426.3,3.2078]
[1730850388727,0.8792,2426.6,2426.4,0.41214]
[1730850389227,1.29132,2426.6,2426.4,0.41214]
[1730850389525,1.29132,2426.6,2426.4,0.41213]
[1730850389526,0.8792,2426.6,2426.4,0.41213]
[1730850390231,0.8792,2426.6,2426.5,0.41213]
[1730850390628,0.4378,2426.6,2426.5,0.41213]
[1730850391132,0.4378,2426.6,2426.4,0.41214]
[1730850391827,3.2078,2426.9,2426.3,3.2078]
[1730850392023,3.61988,2426.9,2426.3,3.2078]
[1730850392429,3.2078,2426.9,2426.6,0.4121]
[1730850393523,3.61987,2426.9,2426.6,0.4121]
[1730850393733,3.2078,2426.9,2426.6,0.4121]
[1730850393924,3.2078,2426.9,2426.7,0.4121]
[1730850394131,3.2078,2426.9,2426.8,0.41208]
[1730850394323,0.86524,2427.1,2426.7,0.41208]
[1730850394628,0.41205,2427.0,2426.7,0.41208]
[1730850394828,0.4532,2427.1,2426.3,3.2078]
[1730850394829,6.19215255,2426.9,2426.3,3.2078]
[1730850395029,6.19215255,2426.9,2426.6,0.41211]
[1730850395524,6.19215255,2426.9,2426.7,0.41209]
[1730850395525,5.78008255,2426.9,2426.7,0.41209]
[1730850396319,6.19215255,2426.9,2426.7,0.41209]
[1730850397424,5.78008255,2426.9,2426.8,0.41208]
[1730850397624,5.78008255,2426.9,2426.3,3.2078]
[1730850397826,5.78008255,2426.9,2426.7,0.41209]
[1730850398625,5.78008255,2426.9,2426.8,0.41208]
[1730850398927,6.19214255,2426.9,2426.7,0.41209]
[1730850399336,2.98434255,2426.9,2426.7,0.41209]
[1730850400028,0.41206,2427.0,2426.6,0.4579]
[1730850400230,0.41206,2427.0,2426.7,0.41209]
[1730850400527,0.41206,2427.0,2426.8,0.41207]
[1730850401130,0.41205,2427.0,2426.8,0.41207]
[1730850401530,3.661,2427.1,2426.6,0.4579]
[1730850401731,3.661,2427.1,2427.0,0.41205]
[1730850401924,3.661,2427.1,2426.6,3.6657]
[1730850401925,0.41207,2426.9,2426.6,0.87001]
[1730850402131,2.57228255,2426.8,2426.6,0.87001]
[1730850402526,0.46,2426.7,2426.6,0.87001]
[1730850403434,0.46,2426.7,2426.5,0.4437]
[1730850403625,0.46,2426.7,2426.5,0.85582]
[1730850403826,0.46,2426.7,2426.6,0.41211]
[1730850404323,0.46,2426.7,2426.6,0.68604547]
[1730850404831,0.46,2426.7,2426.6,0.27393547]
[1730850405136,5.78008255,2427.1,2426.5,0.4437]
[1730850405435,5.78008255,2426.8,2426.3,4.2786955]
[1730850405634,0.4121,2426.7,2426.4,1.23846505]
[1730850405835,6.19218255,2426.8,2426.5,0.27401551]
[1730850406036,5.78008255,2426.8,2426.6,0.68611305]
[1730850406231,3.2078,2426.8,2426.6,0.41211]
[1730850406441,3.2078,2426.8,2426.5,0.4439]
[1730850406735,3.61988,2426.8,2426.6,0.74491931]
[1730850406935,0.4121,2426.7,2426.4,0.41214]
[1730850407136,6.19217255,2426.8,2426.5,0.68613525]
[1730850407328,3.19993238,2427.3,2426.6,3.48176013]
[1730850407527,3.679,2427.3,2426.9,0.41205]
[1730850407837,2.98430255,2427.2,2427.0,0.4709]
[1730850408034,2.57228255,2427.2,2426.7,0.4661]
[1730850408232,3.2078,2426.8,2426.5,0.096]
[1730850408439,0.4454,2426.7,2426.3,4.2786955]
[1730850408635,1.30751,2426.7,2426.4,0.55230969]
[1730850408937,0.8954,2426.7,2426.3,3.2078]
[1730850409136,0.8954,2426.7,2426.4,0.27409016]
[1730850409435,1.30751,2426.7,2426.3,3.61996]
[1730850409626,1.3075,2426.7,2426.3,3.61996]
[1730850410538,1.3075,2426.7,2426.3,3.2078]
[1730850410740,1.3075,2426.7,2426.4,0.68621821]
[1730850410941,1.3075,2426.7,2426.4,0.41215]
[1730850411446,1.3075,2426.7,2426.3,3.61995]
[1730850411738,1.3075,2426.7,2426.4,0.68621251]
[1730850411935,1.3075,2426.7,2426.4,0.41214]
[1730850412239,2.57228255,2426.4,2426.1,1.0708955]
[1730850412435,3.61999,2426.2,2425.9,1.4831255]
[1730850412737,3.46908255,2426.1,2426.0,0.27409656]
[1730850413942,3.46908255,2426.1,2425.9,0.41223]
[1730850414132,3.46908255,2426.1,2425.8,0.4399]
[1730850414333,3.46908255,2426.1,2425.9,0.27400329]
[1730850414334,3.88129255,2426.1,2425.9,0.27400329]
[1730850414537,2.57228255,2425.9,2425.6,1.0708955]
[1730850414736,6.19233255,2425.9,2425.7,0.27394373]
[1730850415036,5.78008255,2425.9,2425.6,0.41228]
[1730850415235,0.41225,2425.8,2425.7,0.2739744]
[1730850415439,0.41229,2425.6,2425.3,4.6910255]
[1730850415740,2.98456255,2425.7,2425.6,1.62321514]
[1730850416039,7.10696255,2425.7,2425.6,1.62321514]
[1730850416339,7.10695255,2425.7,2425.6,1.62321514]
[1730850416942,0.4123,2425.6,2425.3,3.62013]
[1730850417241,3.654,2425.6,2425.5,0.4123]
[1730850417739,3.2078,2425.6,2425.5,0.4123]
[1730850418338,5.78008255,2425.9,2425.1,1.5168955]
[1730850418529,3.2078,2425.9,2425.8,0.41225]
[1730850419136,3.2078,2425.9,2425.2,1.1668955]
[1730850419137,9.90248255,2425.9,2425.2,1.1668955]
[1730850419335,9.90248255,2425.9,2425.0,3.2078]
[1730850419336,5.78008255,2425.3,2425.0,0.096]
[1730850419541,0.4531,2425.2,2425.0,0.41239]
[1730850419743,3.2078,2425.3,2425.2,0.41235]